[Event "43rd Indian-chT 2023-24"]
[Site "Dharamsala"]
[Date "2024.03.30"]
[Round "2.1"]
[White "Krishna C R G"]
[Black "Dhruv Dak"]
[Result "1-0"]
[ECO "E14"]
[WhiteElo "2445"]
[BlackElo "1799"]
[Annotator "ChessBase"]
[PlyCount "69"]
[EventDate "2024.03.28"]
[EventType "team-tourn"]
[EventCountry "IND"]
[SourceTitle "playchess.com"]
[Source "ChessBase"]
[SourceQuality "1"]
[TimeControl "5400+30"]

1. d4 {[%emt 0:00:06]} Nf6 {[%emt 0:07:10]} 2. Nf3 {[%emt 0:00:06]} e6 {[%emt 0:00:04]} 3. e3 {[%emt 0:00:04]} b6 {[%emt 0:01:17]} 4. Bd3 {[%emt 0:00:03]} Bb7 {[%emt 0:00:04]} 5. O-O {[%emt 0:00:09]} Be7 {[%emt 0:00:11]} 6. c4 {[%emt 0:00:06]} O-O {[%emt 0:00:10]} 7. Nc3 {[%emt 0:00:02]} c5 {[%emt 0:00:38]} 8. d5 {[%emt 0:00:05]} exd5 {[%emt 0:01:41]} 9. cxd5 {[%emt 0:00:03]} d6 {[%emt 0:00:30]} 10. e4 {[%emt 0:00:02]} Nbd7 {[%emt 0:01:14]} 11. Bf4 {[%emt 0:00:41]} a6 {[%emt 0:02:24]} 12. a4 {[%emt 0:00:03]} Qc7 13. Nd2 {[%emt 0:08:53]} Ne8 {[%emt 0:27:16]} 14. Bg3 {[%emt 0:07:24]} Ne5 {[%emt 0:05:03]} 15. Be2 Ng6 {[%emt 0:06:13]} 16. Nc4 {[%emt 0:04:18]} Rb8 {[%emt 0:06:15]} 17. f4 {[%emt 0:04:43]} Bc8 {[%emt 0:04:52]} 18. e5 {[%emt 0:05:14]} Bf5 {[%emt 0:06:37]} 19. Qd2 {[%emt 0:16:03]} Qd8 {[%emt 0:15:17]} 20. Rfe1 {[%emt 0:12:15]} Bd7 {[%emt 0:10:34]} 21. Bf1 {[%emt 0:03:48]} b5 {[%emt 0:00:42]} 22. axb5 {[%emt 0:00:07]} axb5 {[%emt 0:00:01]} 23. Na5 {[%emt 0:00:38]} dxe5 {[%emt 0:02:33]} 24. fxe5 {[%emt 0:00:28]} Bg5 {[%emt 0:00:31]} 25. Qf2 {[%emt 0:00:11]} Rb6 {[%emt 0:01:07]} 26. Qxc5 {[%emt 0:01:19]} Bh4 {[%emt 0:00:33]} 27. Bxb5 {[%emt 0:02:12]} Bxb5 {[%emt 0:00:24]} 28. Nxb5 {[%emt 0:00:03]} Bxg3 {[%emt 0:00:20]} 29. hxg3 {[%emt 0:00:04]} Qb8 {[%emt 0:00:18]} 30. Nd4 {[%emt 0:04:54]} Rxb2 {[%emt 0:00:20]} 31. Nac6 {[%emt 0:00:07]} Qb6 {[%emt 0:00:26]} 32. Qxb6 {[%emt 0:00:10]} Rxb6 {[%emt 0:00:01]} 33. Ra7 {[%emt 0:01:42]} f6 {[%emt 0:01:38]} 34. Ne6 {[%emt 0:00:30]} Nxe5 {[%emt 0:00:19]} 35. Ne7+ {[%emt 0:00:11]} 1-0

[Event "43rd Indian-chT 2023-24"]
[Site "Dharamsala"]
[Date "2024.03.30"]
[Round "2.2"]
[White "Naman Porwal"]
[Black "Aronyak Ghosh"]
[Result "0-1"]
[ECO "B56"]
[WhiteElo "1737"]
[BlackElo "2517"]
[Annotator "ChessBase"]
[PlyCount "78"]
[EventDate "2024.03.28"]
[EventType "team-tourn"]
[EventCountry "IND"]
[SourceTitle "playchess.com"]
[Source "ChessBase"]
[SourceQuality "1"]
[TimeControl "5400+30"]

1. e4 {[%emt 0:06:55]} c5 {[%emt 0:00:37]} 2. Nf3 {[%emt 0:00:34]} d6 {[%emt 0:00:32]} 3. d4 {[%emt 0:00:30]} cxd4 {[%emt 0:00:41]} 4. Nxd4 {[%emt 0:00:19]} Nf6 {[%emt 0:00:25]} 5. Nc3 {[%emt 0:00:21]} Bd7 {[%emt 0:00:33]} 6. Bd3 {[%emt 0:02:03]} Nc6 {[%emt 0:01:17]} 7. Nde2 {[%emt 0:05:27]} g6 {[%emt 0:01:48]} 8. O-O {[%emt 0:00:48]} Bg7 {[%emt 0:00:07]} 9. h3 {[%emt 0:00:26]} O-O {[%emt 0:01:12]} 10. Be3 {[%emt 0:01:26]} Rc8 {[%emt 0:03:45]} 11. Qd2 {[%emt 0:01:33]} Ne5 {[%emt 0:08:32]} 12. f4 {[%emt 0:09:13]} Nc4 {[%emt 0:01:02]} 13. Qc1 {[%emt 0:04:21]} Nxe3 {[%emt 0:01:25]} 14. Qxe3 {[%emt 0:00:09]} Qa5 {[%emt 0:00:30]} 15. Rad1 {[%emt 0:00:55]} Bc6 {[%emt 0:05:50]} 16. Nc1 {[%emt 0:07:47]} Nd7 {[%emt 0:03:21]} 17. Nb3 {[%emt 0:00:38]} Qb6 {[%emt 0:01:49]} 18. Qxb6 {[%emt 0:00:13]} Nxb6 {[%emt 0:00:22]} 19. Rde1 {[%emt 0:04:18]} Bxc3 {[%emt 0:05:34]} 20. bxc3 {[%emt 0:00:03]} e5 {[%emt 0:00:43]} 21. Na5 {[%emt 0:04:46]} f6 {[%emt 0:06:42]} 22. Rb1 {[%emt 0:12:59]} Kf7 {[%emt 0:04:43]} 23. Rxb6 {[%emt 0:02:41]} axb6 {[%emt 0:01:02]} 24. Nc4 {[%emt 0:00:14]} Ke7 {[%emt 0:02:44]} 25. Nxb6 {[%emt 0:00:27]} Rce8 {[%emt 0:00:22]} 26. f5 {[%emt 0:06:08]} Rg8 {[%emt 0:03:04]} 27. a4 {[%emt 0:07:44]} gxf5 {[%emt 0:03:34]} 28. Rxf5 {[%emt 0:00:02]} Rg3 {[%emt 0:01:46]} 29. Rf3 {[%emt 0:01:24]} Rxf3 {[%emt 0:01:32]} 30. gxf3 {[%emt 0:00:01]} f5 {[%emt 0:01:01]} 31. exf5 {[%emt 0:03:03]} Bxf3 {[%emt 0:00:39]} 32. Kf2 {[%emt 0:01:09]} Bc6 {[%emt 0:00:17]} 33. Bc4 {[%emt 0:00:43]} Rd8 {[%emt 0:06:40]} 34. Be6 {[%emt 0:01:36]} d5 {[%emt 0:01:02]} 35. Ke3 {[%emt 0:02:45]} Kf6 {[%emt 0:00:31]} 36. h4 {[%emt 0:01:28]} d4+ {[%emt 0:02:42]} 37. cxd4 {[%emt 0:03:18]} Rxd4 {[%emt 0:00:21]} 38. a5 {[%emt 0:00:29]} Rxh4 {[%emt 0:01:50]} 39. c4 {[%emt 0:00:41]} Rh3+ {[%emt 0:00:49]} 0-1

[Event "43rd Indian-chT 2023-24"]
[Site "Dharamsala"]
[Date "2024.03.30"]
[Round "2.3"]
[White "Ghosh, Diptayan"]
[Black "Chandrajeet Singh Rajawat"]
[Result "1-0"]
[ECO "E18"]
[WhiteElo "2559"]
[BlackElo "1819"]
[Annotator "RC"]
[PlyCount "61"]
[EventDate "2024.03.28"]
[EventType "team-tourn"]
[EventCountry "IND"]
[SourceTitle "playchess.com"]
[Source "ChessBase"]
[SourceQuality "1"]
[TimeControl "5400+30"]

1. Nf3 {[%emt 0:00:55]} d5 {[%emt 0:06:19]} 2. g3 {[%emt 0:01:01]} Nf6 {[%emt 0:00:19]} 3. Bg2 {[%emt 0:00:05]} e6 {[%emt 0:01:20]} 4. O-O {[%emt 0:00:23]} b6 {[%emt 0:00:29]} 5. c4 {[%emt 0:00:19]} Bb7 {[%emt 0:00:18]} 6. cxd5 {[%emt 0:00:53]} Nxd5 {[%emt 0:08:00]} 7. d4 Be7 {[%emt 0:02:08]} 8. Ne5 {[%emt 0:10:24]} O-O {[%emt 0:02:25]} 9. e4 {[%emt 0:01:16]} Nf6 {[%emt 0:00:50]} 10. Nc3 {[%emt 0:00:24]} c5 {[%emt 0:00:57]} 11. d5 {[%emt 0:04:24]} exd5 {[%emt 0:14:09]} 12. exd5 {[%emt 0:00:57]} a6 13. Nc6 {[%emt 0:17:06]} Qc7 {[%emt 0:07:44]} 14. Nxe7+ {[%emt 0:07:26]} Qxe7 {[%emt 0:00:03]} 15. Bg5 {[%emt 0:00:08]} Qe5 {[%emt 0:02:40]} 16. Bf4 {[%emt 0:15:27]} Qf5 {[%emt 0:00:09]} 17. Re1 {[%emt 0:06:45]} Nbd7 {[%emt 0:01:15]} 18. Ne4 {[%emt 0:02:32]} Nxe4 {[%emt 0:02:27]} 19. Bxe4 {[%emt 0:00:08]} Qh3 {[%emt 0:01:14]} 20. Bg2 {[%emt 0:07:46]} Qf5 {[%emt 0:00:05]} 21. Be4 {[%emt 0:03:56]} Qh3 {[%emt 0:00:32]} 22. Qd3 {[%emt 0:03:26]} Nf6 {[%emt 0:00:38]} 23. Bg2 {[%emt 0:05:04]} Qd7 {[%emt 0:00:02]} 24. Rad1 Rad8 {[%emt 0:14:43]} 25. Bg5 {[%emt 0:00:24]} Qd6 {[%emt 0:00:01]} 26. Bf4 {[%emt 0:01:11]} Qd7 {[%emt 0:00:14]} 27. Bg5 {[%emt 0:01:45]} Qd6 {[%emt 0:00:03]} 28. Qc3 {[%emt 0:03:04]} Rd7 {[%emt 0:02:15]} 29. Bf4 {[%emt 0:00:30]} Nxd5 {[%emt 0:02:44]} 30. Bxd6 {[%emt 0:01:51]} Nxc3 {[%emt 0:00:22]} 31. bxc3 {[%emt 0:00:04]} 1-0

[Event "43rd Indian-chT 2023-24"]
[Site "Dharamsala"]
[Date "2024.03.30"]
[Round "2.4"]
[White "Gautam Kataria"]
[Black "Visakh N R"]
[Result "0-1"]
[ECO "D27"]
[WhiteElo "1855"]
[BlackElo "2521"]
[Annotator "RC"]
[PlyCount "104"]
[EventDate "2024.03.28"]
[EventType "team-tourn"]
[EventCountry "IND"]
[SourceTitle "playchess.com"]
[Source "ChessBase"]
[SourceQuality "1"]
[TimeControl "5400+30"]

1. d4 {[%emt 0:08:24]} Nf6 {[%emt 0:00:12]} 2. c4 {[%emt 0:00:19]} e6 {[%emt 0:00:25]} 3. Nf3 {[%emt 0:00:29]} d5 {[%emt 0:00:19]} 4. Nc3 {[%emt 0:00:43]} dxc4 {[%emt 0:00:19]} 5. e3 {[%emt 0:00:43]} a6 {[%emt 0:00:08]} 6. a4 {[%emt 0:02:42]} c5 {[%emt 0:00:25]} 7. Bxc4 {[%emt 0:00:28]} Nc6 {[%emt 0:00:07]} 8. O-O {[%emt 0:00:23]} Be7 {[%emt 0:00:06]} 9. dxc5 Bxc5 {[%emt 0:10:57]} 10. Qe2 {[%emt 0:08:48]} O-O {[%emt 0:03:47]} 11. Rd1 {[%emt 0:05:29]} Qc7 {[%emt 0:04:03]} 12. h3 {[%emt 0:03:08]} b6 {[%emt 0:06:11]} 13. Bd2 {[%emt 0:04:27]} Bb7 {[%emt 0:01:43]} 14. Rac1 {[%emt 0:09:49]} Ne5 {[%emt 0:05:21]} 15. Nxe5 {[%emt 0:01:10]} Qxe5 {[%emt 0:00:02]} 16. Ba2 {[%emt 0:03:32]} Qg5 {[%emt 0:05:11]} 17. e4 {[%emt 0:02:18]} Qh4 {[%emt 0:00:20]} 18. Bb1 {[%emt 0:02:49]} Nh5 {[%emt 0:08:11]} 19. Be3 {[%emt 0:05:09]} Nf4 {[%emt 0:01:58]} 20. Qf3 {[%emt 0:03:19]} Bxe3 {[%emt 0:00:54]} 21. Qxe3 {[%emt 0:01:41]} Qg5 {[%emt 0:00:07]} 22. Qg3 {[%emt 0:01:13]} Qh6 {[%emt 0:00:19]} 23. Bd3 {[%emt 0:03:36]} Rac8 24. Bf1 {[%emt 0:01:22]} e5 {[%emt 0:19:34]} 25. Qe3 {[%emt 0:01:38]} Qg6 {[%emt 0:06:08]} 26. g3 {[%emt 0:03:39]} b5 {[%emt 0:06:06]} 27. Kh2 {[%emt 0:02:17]} b4 {[%emt 0:01:29]} 28. gxf4 {[%emt 0:05:10]} bxc3 {[%emt 0:00:20]} 29. f5 {[%emt 0:00:20]} Qc6 {[%emt 0:00:34]} 30. Bd3 {[%emt 0:02:59]} Qxa4 {[%emt 0:02:12]} 31. bxc3 {[%emt 0:00:58]} Qc6 {[%emt 0:02:47]} 32. Bb1 {[%emt 0:00:56]} Rfd8 {[%emt 0:00:37]} 33. Rg1 {[%emt 0:00:11]} Kf8 {[%emt 0:00:28]} 34. Rg3 {[%emt 0:05:08]} Qc5 {[%emt 0:01:42]} 35. Qe2 {[%emt 0:01:46]} Rd6 {[%emt 0:00:50]} 36. Rcg1 {[%emt 0:00:42]} g6 {[%emt 0:00:02]} 37. fxg6 {[%emt 0:08:07]} hxg6 {[%emt 0:00:30]} 38. Rf3 {[%emt 0:00:23]} Ke8 {[%emt 0:07:54]} 39. Rd1 {[%emt 0:01:25]} Rcd8 {[%emt 0:00:02]} 40. Rxd6 {[%emt 0:00:31]} Rxd6 {[%emt 0:00:01]} 41. Qb2 {[%emt 0:00:20]} Qb6 {[%emt 0:01:02]} 42. Qc1 {[%emt 0:01:32]} Rf6 {[%emt 0:00:46]} 43. Rxf6 Qxf6 44. Qb2 Bc8 45. Qd2 Qf3 46. Qd3 Qxf2+ 47. Kh1 Be6 48. Bc2 Kf8 49. Qd6+ Kg8 50. Qd8+ Kg7 51. Qd3 Bxh3 52. Qxh3 Qxc2 {[%emt 0:05:00]} 0-1

[Event "43rd Indian-chT 2023-24"]
[Site "Dharamsala"]
[Date "2024.03.30"]
[Round "2.5"]
[White "Sharma, Dinesh K."]
[Black "Vignesh N R"]
[Result "1/2-1/2"]
[ECO "C70"]
[WhiteElo "2209"]
[BlackElo "2525"]
[Annotator "ChessBase"]
[PlyCount "63"]
[EventDate "2024.03.28"]
[EventType "team-tourn"]
[EventCountry "IND"]
[SourceTitle "playchess.com"]
[Source "ChessBase"]
[SourceQuality "1"]
[TimeControl "5400+30"]

1. e4 {[%emt 0:00:04]} e5 {[%emt 0:00:09]} 2. Nf3 {[%emt 0:00:07]} Nc6 {[%emt 0:00:03]} 3. Bb5 {[%emt 0:00:09]} a6 {[%emt 0:00:03]} 4. Ba4 {[%emt 0:00:07]} Bc5 {[%emt 0:01:18]} 5. O-O {[%emt 0:01:21]} Nge7 {[%emt 0:00:29]} 6. Nxe5 {[%emt 0:04:01]} Nxe5 {[%emt 0:00:15]} 7. d4 {[%emt 0:00:02]} b5 {[%emt 0:00:14]} 8. Bb3 {[%emt 0:00:06]} Bxd4 {[%emt 0:00:32]} 9. Qxd4 {[%emt 0:00:16]} d6 {[%emt 0:00:34]} 10. f4 {[%emt 0:04:31]} c5 {[%emt 0:00:09]} 11. Qd1 {[%emt 0:01:09]} c4 {[%emt 0:00:19]} 12. fxe5 {[%emt 0:01:23]} Qb6+ {[%emt 0:00:05]} 13. Kh1 {[%emt 0:02:27]} dxe5 {[%emt 0:00:06]} 14. Bxc4 {[%emt 0:01:48]} bxc4 {[%emt 0:00:02]} 15. Nd2 {[%emt 0:13:48]} Qc5 {[%emt 0:10:49]} 16. b3 {[%emt 0:07:49]} Be6 {[%emt 0:00:43]} 17. Nxc4 {[%emt 0:04:40]} Bxc4 {[%emt 0:01:38]} 18. bxc4 {[%emt 0:00:02]} Rd8 {[%emt 0:11:47]} 19. Qf3 {[%emt 0:08:27]} Qxc4 {[%emt 0:07:21]} 20. Ba3 {[%emt 0:01:27]} Qe6 {[%emt 0:04:10]} 21. Qb3 {[%emt 0:05:06]} Qxb3 {[%emt 0:00:14]} 22. axb3 {[%emt 0:01:33]} Nc6 {[%emt 0:00:22]} 23. Bc5 {[%emt 0:07:08]} a5 {[%emt 0:00:20]} 24. c3 {[%emt 0:06:36]} Rd3 {[%emt 0:06:38]} 25. Rf3 {[%emt 0:02:59]} Rxf3 {[%emt 0:00:08]} 26. gxf3 {[%emt 0:00:05]} Kd7 {[%emt 0:00:01]} 27. Rd1+ {[%emt 0:02:36]} Kc7 {[%emt 0:00:20]} 28. Kg2 {[%emt 0:05:44]} Rd8 {[%emt 0:07:29]} 29. Rd5 {[%emt 0:02:19]} f6 {[%emt 0:04:08]} 30. Kf2 {[%emt 0:01:22]} Ra8 {[%emt 0:01:34]} 31. Bd6+ {[%emt 0:02:20]} Kc8 {[%emt 0:04:34]} 32. f4 {[%emt 0:02:40]} 1/2-1/2

[Event "43rd Indian-chT 2023-24"]
[Site "Dharamsala"]
[Date "2024.03.30"]
[Round "2.6"]
[White "Das, Sayantan"]
[Black "Ashutosh Mohapatra"]
[Result "1-0"]
[ECO "B31"]
[WhiteElo "2502"]
[BlackElo "1924"]
[Annotator "RC"]
[PlyCount "124"]
[EventDate "2024.03.28"]
[EventType "team-tourn"]
[EventCountry "IND"]
[SourceTitle "playchess.com"]
[Source "ChessBase"]
[SourceQuality "1"]
[TimeControl "5400+30"]

1. e4 {[%emt 0:00:15]} c5 {[%emt 0:00:00]} 2. Nf3 {[%emt 0:00:18]} Nc6 {[%emt 0:00:00]} 3. Bb5 {[%emt 0:00:22]} g6 {[%emt 0:01:09]} 4. O-O {[%emt 0:01:19]} Bg7 {[%emt 0:00:25]} 5. c3 {[%emt 0:02:05]} a6 {[%emt 0:03:29]} 6. Bxc6 {[%emt 0:03:19]} dxc6 {[%emt 0:00:38]} 7. h3 {[%emt 0:01:05]} e5 {[%emt 0:01:20]} 8. d3 {[%emt 0:04:52]} Ne7 {[%emt 0:02:42]} 9. a4 {[%emt 0:01:27]} a5 {[%emt 0:00:09]} 10. Na3 {[%emt 0:00:43]} Qc7 {[%emt 0:06:21]} 11. Qb3 {[%emt 0:06:27]} b6 12. Nc4 {[%emt 0:13:52]} Rb8 {[%emt 0:23:19]} 13. Ng5 {[%emt 0:04:55]} O-O {[%emt 0:00:50]} 14. Qc2 {[%emt 0:12:05]} h6 {[%emt 0:03:15]} 15. Nf3 {[%emt 0:00:02]} Be6 {[%emt 0:05:43]} 16. Be3 {[%emt 0:05:15]} f5 {[%emt 0:06:45]} 17. Qe2 {[%emt 0:03:38]} f4 {[%emt 0:07:56]} 18. Bd2 {[%emt 0:02:03]} g5 {[%emt 0:01:21]} 19. b4 {[%emt 0:01:47]} axb4 {[%emt 0:04:41]} 20. cxb4 {[%emt 0:00:18]} cxb4 {[%emt 0:00:46]} 21. Bxb4 {[%emt 0:02:07]} c5 {[%emt 0:01:02]} 22. Bc3 {[%emt 0:02:45]} Nc6 {[%emt 0:03:30]} 23. Nfd2 {[%emt 0:03:34]} Qd7 {[%emt 0:05:52]} 24. Ra3 {[%emt 0:06:11]} Kh7 {[%emt 0:07:07]} 25. Rb1 {[%emt 0:02:08]} Rfd8 {[%emt 0:06:29]} 26. Ba1 {[%emt 0:03:58]} Qc7 {[%emt 0:00:33]} 27. Rc1 {[%emt 0:03:14]} Kg6 {[%emt 0:02:15]} 28. Rb3 {[%emt 0:02:05]} h5 {[%emt 0:01:06]} 29. Rcb1 {[%emt 0:02:06]} Nb4 {[%emt 0:01:37]} 30. Bc3 {[%emt 0:00:23]} Rxd3 {[%emt 0:01:30]} 31. Bxb4 {[%emt 0:02:44]} Rxb3 {[%emt 0:00:50]} 32. Rxb3 {[%emt 0:00:08]} cxb4 {[%emt 0:00:09]} 33. Rxb4 {[%emt 0:00:04]} Bf8 {[%emt 0:00:21]} 34. Rb5 {[%emt 0:01:33]} Bc5 {[%emt 0:00:38]} 35. Nf3 {[%emt 0:02:31]} Bxc4 {[%emt 0:01:43]} 36. Qxc4 {[%emt 0:00:02]} Kf6 {[%emt 0:01:01]} 37. Qe2 {[%emt 0:02:26]} Ra8 {[%emt 0:00:23]} 38. Ne1 {[%emt 0:01:01]} Qf7 {[%emt 0:01:25]} 39. Qc2 {[%emt 0:01:20]} Qd7 {[%emt 0:00:23]} 40. Nd3 {[%emt 0:01:38]} Bd4 {[%emt 0:00:07]} 41. Rd5 {[%emt 0:00:44]} Rc8 {[%emt 0:01:09]} 42. Qd1 {[%emt 0:01:01]} Qh7 {[%emt 0:00:46]} 43. Qb3 {[%emt 0:01:30]} Qc7 {[%emt 0:00:41]} 44. Qb5 {[%emt 0:00:34]} Rd8 {[%emt 0:00:28]} 45. Kf1 {[%emt 0:00:32]} g4 {[%emt 0:00:28]} 46. a5 {[%emt 0:00:24]} bxa5 {[%emt 0:00:33]} 47. Qa6+ {[%emt 0:00:06]} Qb6 {[%emt 0:00:28]} 48. Qc4 {[%emt 0:00:28]} Rxd5 {[%emt 0:00:18]} 49. exd5 {[%emt 0:00:02]} f3 {[%emt 0:00:36]} 50. gxf3 {[%emt 0:00:33]} gxf3 {[%emt 0:00:01]} 51. Ne1 {[%emt 0:01:08]} Bxf2 {[%emt 0:01:03]} 52. Nxf3 {[%emt 0:00:10]} Bg3 {[%emt 0:00:12]} 53. Qe2 {[%emt 0:00:29]} a4 {[%emt 0:00:44]} 54. Nd2 {[%emt 0:00:35]} Bf4 {[%emt 0:00:39]} 55. Ne4+ {[%emt 0:00:06]} Ke7 {[%emt 0:00:28]} 56. d6+ {[%emt 0:00:27]} Kd7 {[%emt 0:00:16]} 57. Qd3 {[%emt 0:01:12]} Qc6 {[%emt 0:00:47]} 58. Nf6+ {[%emt 0:00:19]} Ke6 {[%emt 0:00:07]} 59. d7 {[%emt 0:00:29]} Qc1+ {[%emt 0:00:52]} 60. Ke2 {[%emt 0:01:02]} Qb2+ {[%emt 0:00:05]} 61. Kf3 {[%emt 0:00:17]} Qb7+ {[%emt 0:00:55]} 62. Ne4 {[%emt 0:00:09]} Qb6 {[%emt 0:01:04]} 1-0

[Event "43rd Indian-chT 2023-24"]
[Site "Dharamsala"]
[Date "2024.03.30"]
[Round "2.7"]
[White "Rajith V."]
[Black "Swapnil, S. Dhopade"]
[Result "0-1"]
[ECO "D40"]
[WhiteElo "1695"]
[BlackElo "2454"]
[Annotator "RC"]
[PlyCount "68"]
[EventDate "2024.03.28"]
[EventType "team-tourn"]
[EventCountry "IND"]
[SourceTitle "playchess.com"]
[Source "ChessBase"]
[SourceQuality "1"]
[TimeControl "5400+30"]

1. e4 {[%emt 0:00:07]} c6 {[%emt 0:00:04]} 2. d4 {[%emt 0:00:12]} d5 {[%emt 0:00:05]} 3. exd5 {[%emt 0:00:08]} cxd5 {[%emt 0:00:05]} 4. c4 {[%emt 0:00:18]} Nf6 {[%emt 0:00:04]} 5. Nc3 {[%emt 0:00:17]} e6 {[%emt 0:02:16]} 6. Nf3 {[%emt 0:00:21]} Be7 {[%emt 0:00:05]} 7. Be2 {[%emt 0:01:12]} O-O {[%emt 0:01:31]} 8. O-O {[%emt 0:00:17]} dxc4 {[%emt 0:03:01]} 9. Bxc4 {[%emt 0:00:24]} Nc6 {[%emt 0:00:04]} 10. Bf4 {[%emt 0:01:53]} b6 {[%emt 0:01:53]} 11. Rc1 {[%emt 0:02:05]} Bb7 {[%emt 0:00:14]} 12. a3 {[%emt 0:03:38]} Rc8 {[%emt 0:00:09]} 13. Ba2 Bd6 {[%emt 0:35:45]} 14. Bg5 {[%emt 0:03:38]} Be7 15. Qd3 {[%emt 0:05:24]} Nd5 {[%emt 0:08:24]} 16. Bb1 {[%emt 0:01:03]} g6 {[%emt 0:00:05]} 17. Bh6 {[%emt 0:01:20]} Re8 {[%emt 0:00:04]} 18. Ne4 {[%emt 0:03:18]} Bf8 {[%emt 0:06:05]} 19. Bg5 {[%emt 0:01:10]} f6 {[%emt 0:00:08]} 20. Bd2 {[%emt 0:02:11]} Rc7 {[%emt 0:03:51]} 21. h4 {[%emt 0:05:08]} Rd7 {[%emt 0:05:01]} 22. Rfd1 {[%emt 0:21:24]} Bg7 {[%emt 0:03:56]} 23. h5 {[%emt 0:01:18]} Nce7 {[%emt 0:02:39]} 24. Ng3 {[%emt 0:04:41]} Nf5 {[%emt 0:03:00]} 25. hxg6 {[%emt 0:03:31]} hxg6 {[%emt 0:00:06]} 26. Nxf5 {[%emt 0:07:50]} gxf5 {[%emt 0:02:31]} 27. g4 {[%emt 0:01:39]} Ne7 {[%emt 0:02:29]} 28. Bc3 {[%emt 0:18:06]} Ng6 {[%emt 0:05:58]} 29. Qe3 {[%emt 0:02:54]} Bf8 {[%emt 0:03:59]} 30. Re1 {[%emt 0:01:23]} Rg7 {[%emt 0:01:24]} 31. Bxf5 {[%emt 0:05:53]} exf5 {[%emt 0:01:38]} 32. Qxe8 {[%emt 0:00:10]} Qxe8 {[%emt 0:04:57]} 33. Rxe8 {[%emt 0:00:03]} Bxf3 {[%emt 0:00:05]} 34. d5 {[%emt 0:01:57]} Rh7 {[%emt 0:00:17]} 0-1

[Event "43rd Indian-chT 2023-24"]
[Site "Dharamsala"]
[Date "2024.03.30"]
[Round "2.8"]
[White "Gusain, Himal"]
[Black "Gajendra, Singh"]
[Result "1-0"]
[ECO "C11"]
[WhiteElo "2484"]
[BlackElo "1798"]
[Annotator "ChessBase"]
[PlyCount "61"]
[EventDate "2024.03.28"]
[EventType "team-tourn"]
[EventCountry "IND"]
[SourceTitle "playchess.com"]
[Source "ChessBase"]
[SourceQuality "1"]
[TimeControl "5400+30"]

1. e4 {[%emt 0:00:08]} e6 {[%emt 0:00:12]} 2. d4 {[%emt 0:00:09]} d5 {[%emt 0:00:07]} 3. Nc3 {[%emt 0:00:07]} Nf6 {[%emt 0:01:08]} 4. e5 {[%emt 0:00:11]} Nfd7 {[%emt 0:00:37]} 5. f4 {[%emt 0:00:07]} c5 {[%emt 0:00:26]} 6. Nf3 {[%emt 0:00:06]} Nc6 {[%emt 0:00:21]} 7. Be3 {[%emt 0:00:09]} a6 {[%emt 0:05:29]} 8. Qd2 {[%emt 0:00:23]} cxd4 {[%emt 0:01:11]} 9. Nxd4 {[%emt 0:00:07]} Qc7 {[%emt 0:04:10]} 10. O-O-O {[%emt 0:02:08]} Nb6 11. Qf2 {[%emt 0:05:21]} Bc5 {[%emt 0:15:41]} 12. Kb1 {[%emt 0:17:01]} Bxd4 {[%emt 0:03:49]} 13. Bxd4 {[%emt 0:00:32]} Nxd4 {[%emt 0:00:37]} 14. Rxd4 {[%emt 0:00:53]} Bd7 {[%emt 0:02:49]} 15. Qg3 O-O {[%emt 0:08:30]} 16. Bd3 {[%emt 0:06:42]} f5 {[%emt 0:02:13]} 17. exf6 {[%emt 0:03:36]} Rxf6 {[%emt 0:01:44]} 18. Qe3 {[%emt 0:01:18]} Re8 {[%emt 0:07:30]} 19. Re1 {[%emt 0:00:13]} Bc6 {[%emt 0:01:01]} 20. g4 {[%emt 0:01:03]} g6 {[%emt 0:11:23]} 21. h4 {[%emt 0:00:56]} Ref8 {[%emt 0:01:20]} 22. h5 {[%emt 0:01:53]} Bd7 {[%emt 0:03:23]} 23. hxg6 {[%emt 0:02:40]} hxg6 {[%emt 0:07:14]} 24. Rh1 {[%emt 0:04:40]} Bc8 {[%emt 0:05:32]} 25. f5 {[%emt 0:03:47]} exf5 {[%emt 0:01:41]} 26. gxf5 {[%emt 0:00:31]} Bxf5 {[%emt 0:01:45]} 27. Rdh4 {[%emt 0:02:33]} Qg7 {[%emt 0:01:40]} 28. Bxf5 {[%emt 0:00:09]} Rxf5 {[%emt 0:02:17]} 29. Qxb6 {[%emt 0:00:14]} g5 {[%emt 0:04:17]} 30. Qe6+ {[%emt 0:00:37]} R8f7 {[%emt 0:01:13]} 31. Rh6 {[%emt 0:01:22]} 1-0

[Event "43rd Indian-chT 2023-24"]
[Site "Dharamsala"]
[Date "2024.03.30"]
[Round "3.1"]
[White "Mummana Venkata Ruthvik"]
[Black "Aronyak Ghosh"]
[Result "0-1"]
[ECO "B12"]
[WhiteElo "1868"]
[BlackElo "2517"]
[Annotator "RC"]
[PlyCount "52"]
[EventDate "2024.03.28"]
[EventType "team-tourn"]
[EventCountry "IND"]
[SourceTitle "playchess.com"]
[Source "ChessBase"]
[SourceQuality "1"]
[TimeControl "5400+30"]

1. e4 {[%emt 0:01:09]} c6 {[%emt 0:00:49]} 2. d4 {[%emt 0:00:53]} d5 {[%emt 0:00:18]} 3. e5 {[%emt 0:00:43]} Bf5 {[%emt 0:00:34]} 4. h4 {[%emt 0:00:55]} h6 {[%emt 0:00:57]} 5. g4 {[%emt 0:02:36]} Be4 {[%emt 0:00:41]} 6. f3 {[%emt 0:01:31]} Bh7 {[%emt 0:00:14]} 7. e6 {[%emt 0:03:48]} Nf6 {[%emt 0:00:43]} 8. Bd3 {[%emt 0:06:11]} Qd6 {[%emt 0:00:45]} 9. exf7+ {[%emt 0:01:33]} Kxf7 {[%emt 0:00:17]} 10. Ne2 {[%emt 0:02:41]} Nbd7 {[%emt 0:01:56]} 11. Bxh7 {[%emt 0:06:33]} Rxh7 {[%emt 0:00:15]} 12. Nbc3 {[%emt 0:05:49]} e5 {[%emt 0:01:15]} 13. Be3 {[%emt 0:03:58]} c5 {[%emt 0:06:36]} 14. dxc5 {[%emt 0:12:21]} Qc6 {[%emt 0:00:21]} 15. Rg1 {[%emt 0:03:13]} g5 {[%emt 0:04:52]} 16. hxg5 {[%emt 0:10:07]} hxg5 {[%emt 0:00:32]} 17. Bxg5 {[%emt 0:03:11]} Bxc5 {[%emt 0:02:19]} 18. Rf1 {[%emt 0:02:13]} d4 {[%emt 0:00:40]} 19. Ne4 {[%emt 0:02:18]} Nxe4 {[%emt 0:08:45]} 20. fxe4+ {[%emt 0:00:24]} Kg6 {[%emt 0:00:22]} 21. Qd2 {[%emt 0:04:19]} Rc8 {[%emt 0:08:52]} 22. a3 {[%emt 0:06:31]} Rh3 {[%emt 0:09:32]} 23. O-O-O {[%emt 0:13:35]} Rxa3 {[%emt 0:02:14]} 24. Kb1 {[%emt 0:00:10]} Bb4 {[%emt 0:01:00]} 25. Qc1 {[%emt 0:00:18]} Qa4 26. bxa3 {[%emt 0:00:30]} Bxa3 0-1